fUSD/lending_fUSD_20240427
["ID","MTS","AMOUNT","RATE_DAILY","PERIOD"]
[323711625,1714180246669,-500.0,0.00012898,2]
[323711626,1714180246680,-500.0,0.00012898,2]
[323711627,1714180246691,-500.0,0.00012898,2]
[323711628,1714180246704,-500.0,0.00012898,2]
[323711629,1714180246715,-500.0,0.00012898,2]
[323711630,1714180246727,-500.0,0.00012898,2]
[323711631,1714180246738,-500.0,0.00012898,2]
[323711632,1714180246748,-420.87743394,0.00012898,2]
[323711633,1714180246759,-574.69,0.00012898,2]
[323711634,1714180246770,-500.0,0.00012898,2]
[323711635,1714180246956,-500.0,0.00012898,2]
[323711636,1714180246980,-500.0,0.00012898,2]
[323711637,1714180247002,-588.59,0.00012898,2]
[323711638,1714180247022,-500.0,0.00012898,2]
[323711639,1714180247044,-500.0,0.00012898,2]
[323711640,1714180247053,-500.0,0.00012898,2]
[323711641,1714180247063,-196.46,0.00012898,2]
[323711642,1714180247072,-500.0,0.00012898,2]
[323711643,1714180247082,-500.0,0.00012898,2]
[323711644,1714180247093,-616.05,0.00012898,2]
[323711645,1714180247105,-500.0,0.00012898,2]
[323711646,1714180247116,-500.0,0.00012898,2]
[323711647,1714180247127,-500.0,0.00012898,2]
[323711648,1714180247137,-500.0,0.00012898,2]
[323711649,1714180247148,-500.0,0.00012898,2]
[323711650,1714180247158,-500.0,0.00012898,2]
[323711651,1714180247169,-500.0,0.00012898,2]
[323711652,1714180247180,-500.0,0.00012898,2]
[323711653,1714180247190,-500.0,0.00012898,2]
[323711654,1714180247199,-500.0,0.00012898,2]
[323711655,1714180247209,-500.0,0.00012898,2]
[323711656,1714180247220,-500.0,0.00012898,2]
[323711657,1714180247231,-500.0,0.00012898,2]
[323711658,1714180247242,-500.0,0.00012898,2]
[323711659,1714180247255,-500.0,0.00012898,2]
[323711660,1714180247266,-500.0,0.00012898,2]
[323711661,1714180247276,-500.0,0.00012898,2]
[323711662,1714180247286,-500.0,0.00012898,2]
[323711663,1714180247296,-500.0,0.00012898,2]
[323711664,1714180247305,-500.0,0.00012898,2]
[323711665,1714180247316,-500.0,0.00012898,2]
[323711666,1714180247326,-500.0,0.00012898,2]
[323711667,1714180247336,-500.0,0.00012898,2]
[323711668,1714180247346,-229.70155931,0.00012898,2]
[323711669,1714180247357,-500.0,0.00012898,2]
[323711670,1714180247367,-500.0,0.00012898,2]
[323711671,1714180247376,-500.0,0.00012898,2]
[323711672,1714180247386,-500.0,0.00012898,2]
[323711673,1714180247395,-194.8386271,0.00012898,2]
[323711674,1714180247405,-500.0,0.00012898,2]
[323711675,1714180247414,-500.0,0.00012898,2]
[323711676,1714180247423,-500.0,0.00012898,2]
[323711677,1714180247433,-500.0,0.00012898,2]
[323711678,1714180247443,-507.24,0.00012898,2]
[323711679,1714180247453,-500.0,0.00012898,2]
[323711680,1714180247462,-514.21,0.00012898,2]
[323711681,1714180247471,-500.0,0.00012898,2]
[323711682,1714180247481,-500.0,0.00012898,2]
[323711683,1714180247491,-439.53,0.00012898,2]
[323711684,1714180247501,-151.0,0.00012898,2]
[323711685,1714180247512,-500.0,0.00012898,2]
[323711686,1714180247522,-500.0,0.00012898,2]
[323711687,1714180247532,-500.0,0.00012898,2]
[323711688,1714180247542,-500.0,0.00012898,2]
[323711689,1714180247553,-500.0,0.00012898,2]
[323711690,1714180247564,-500.0,0.00012898,2]
[323711691,1714180247574,-500.0,0.00012898,2]
[323711692,1714180247584,-307.11,0.00012898,2]
[323711693,1714180247594,-434.23,0.00012898,2]
[323711694,1714180247606,-500.0,0.00012898,2]
[323711695,1714180247615,-588.74,0.00012898,2]
[323711696,1714180247625,-500.0,0.00012898,2]
[323711697,1714180247635,-2418.22,0.00012898,2]
[323711698,1714180247645,-500.0,0.00012898,2]
[323711699,1714180247656,-500.0,0.00012898,2]
[323711700,1714180247665,-500.0,0.00012898,2]
[323711701,1714180247677,-500.0,0.00012898,2]
[323711702,1714180247686,-500.0,0.00012898,2]
[323711703,1714180247697,-500.0,0.00012898,2]
[323711704,1714180247706,-500.0,0.00012898,2]
[323711705,1714180247716,-500.0,0.00012898,2]
[323711706,1714180247726,-500.0,0.00012898,2]
[323711707,1714180247735,-500.0,0.00012898,2]
[323711708,1714180247745,-500.0,0.00012898,2]
[323711709,1714180247754,-500.0,0.00012898,2]
[323711710,1714180247763,-500.0,0.00012898,2]
[323711711,1714180247774,-820.44,0.00012898,2]
[323711712,1714180247783,-1187.954716,0.00012898,2]
[323711713,1714180247793,-1187.954716,0.00012898,2]
[323711714,1714180247802,-502.0610673,0.00012899,2]
[323711715,1714180247812,-500.0,0.00012899,2]
[323711716,1714180247821,-500.0,0.00012899,2]
[323711717,1714180247831,-500.0,0.00012899,2]
[323711718,1714180247841,-500.0,0.00012899,2]
[323711719,1714180247850,-500.0,0.00012899,2]
[323711720,1714180247863,-500.0,0.000129,4]
[323711721,1714180247873,-186.67421877,0.000129,2]
[323711722,1714180247882,-417.94830848,0.00012904,2]
[323711723,1714180247892,-417.94830848,0.00012918,2]
[323711724,1714180247901,-417.94830848,0.00012932,2]
[323711725,1714180247910,-417.94830848,0.00012946,2]
[323711726,1714180247920,-417.94830848,0.0001296,2]
[323711727,1714180247929,-417.94830848,0.00012973,2]
[323711728,1714180247938,-417.94830848,0.00012987,2]
[323711729,1714180247947,-2046.17796797,0.00012989,2]
[323711730,1714180247957,-500.0,0.00012989,2]
[323711731,1714180247966,-500.0,0.00012989,2]
[323711732,1714180247976,-976.0,0.0001299,2]
[323711733,1714180247985,-17136.90927877,0.0001299,2]
[323711734,1714180248405,-500.0,0.00012798,2]
[323711735,1714180248415,-511.7,0.00012798,2]
[323711736,1714180248425,-11007.95979289,0.000129,2]
[323711737,1714180248452,-19527.30545311,0.000129,2]
[323711738,1714180248471,-409.7434072,0.000129,2]
[323711739,1714180248482,-881.7899985,0.000129,2]
[323711740,1714180248528,-478.70000222,0.00012797,2]
[323711741,1714180248713,-150.0,0.00012192,2]
[323711742,1714180248722,-710.90647182,0.00012697,2]
[323711743,1714180248740,-289.09352818,0.00012697,2]
[323711744,1714180248753,-21.29999778,0.00012797,2]
[323711745,1714180248764,-270.44647404,0.00012798,2]
[323711746,1714180248775,-229.55352596,0.00012798,2]
[323711747,1714180248784,-478.51,0.00012798,2]
[323711748,1714180248793,-500.0,0.00012798,2]
[323711749,1714180248802,-500.0,0.00012894,2]
[323711750,1714180248811,-4777.01219687,0.000129,2]
[323711752,1714180986622,-207.8305692,9.478e-05,2]
[323711753,1714180986650,-621.78404617,9.478e-05,2]
[323711754,1714180986679,-1294.43807888,9.479e-05,2]
[323711755,1714180986703,-155.0,9.479e-05,2]
[323711756,1714180986727,-262.43,9.493e-05,2]
[323711757,1714181104049,20177.97774696,9.493e-05,2]
[323711758,1714181109210,155.0,9.493e-05,2]
[323711759,1714181120017,2023.27258538,9.493e-05,2]
[323711760,1714181129201,155.0,9.493e-05,2]
[323711761,1714181147200,231.35371948,9.493e-05,2]
[323711768,1714181183498,249.3,9.407e-05,2]
[323711770,1714181430234,17778.55918989,9.407e-05,2]
[323711781,1714181432952,-155.0,0.00010507,2]
[323711782,1714181433185,-1645.29185524,0.00010508,2]
[323711783,1714181433201,-8306.49548208,0.00010508,2]
[323711784,1714181433210,-5000.0,0.00010508,2]
[323711785,1714181433224,-1784.07046245,0.00010897,2]
[323711786,1714181433232,-155.0,0.000109,2]
[323711787,1714181433241,-159.10767688,0.00011168,2]
[323711788,1714181433251,-2206.66,0.00011268,2]
[323711789,1714181433259,-150.0,0.00011275,2]
[323711790,1714181433269,-9441.61,0.00011276,2]
[323711791,1714181433278,-200.0,0.00011295,2]
[323711792,1714181433287,-250.0,0.00011308,2]
[323711793,1714181433296,-188.55,0.00011308,2]
[323711794,1714181433305,-1500.0,0.00011324,2]
[323711795,1714181433314,-698.28,0.00011324,2]
[323711796,1714181433323,-962.62,0.0001133,2]
[323711797,1714181433332,-328.63,0.00011383,2]
[323711798,1714181433341,-173.5,0.00011383,2]
[323711799,1714181433351,-151.15,0.00011501,2]
[323711800,1714181433360,-837.26,0.00011623,2]
[323711801,1714181433369,-249.3,0.0001167,2]
[323711802,1714181433378,-166.18,0.00011703,2]
[323711803,1714181433387,-173.5,0.00011977,2]
[323711804,1714181433396,-1002.20182295,0.00011999,2]
[323711805,1714181433406,-182.0,0.00012,2]
[323711806,1714181433415,-5000.0,0.00012,2]
[323711807,1714181433424,-409.2085642,0.00012054,2]
[323711808,1714181433433,-200.91,0.00012055,2]
[323711809,1714181433442,-400.0,0.000121,4]
[323711810,1714181433452,-441.71566711,0.00012155,2]
[323711811,1714181433462,-150.0,0.00012178,2]
[323711812,1714181433473,-419.25,0.00012192,2]
[323711813,1714181433482,-419.25,0.00012192,2]
[323711815,1714181433491,-419.25,0.00012192,2]
[323711816,1714181433500,-419.25,0.00012192,2]
[323711817,1714181433509,-419.25,0.00012192,2]
[323711818,1714181433519,-418.38,0.00012192,2]
[323711819,1714181433528,-800.0,0.000122,4]
[323711820,1714181433537,-150.0,0.00012278,2]
[323711821,1714181433546,-1300.0,0.000123,4]
[323711822,1714181433556,-520.0,0.00012328,2]
[323711823,1714181433565,-545.0,0.00012328,2]
[323711824,1714181433574,-1132.97605351,0.00012339,2]
[323711825,1714181433584,-200.7089839,0.00012339,2]
[323711826,1714181433594,-150.0,0.00012378,2]
[323711827,1714181433603,-150.0,0.00012378,2]
[323711828,1714181433612,-150.0,0.00012378,2]
[323711829,1714181433622,-150.0,0.00012378,2]
[323711830,1714181433632,-1700.0,0.000124,4]
[323711831,1714181433641,-150.0,0.00012466,2]
[323711832,1714181433650,-150.0,0.00012466,2]
[323711833,1714181433659,-150.0,0.00012466,2]
[323711834,1714181433668,-150.0,0.00012466,2]
[323711835,1714181433678,-150.91,0.00012466,2]
[323711836,1714181433687,-166.64,0.00012478,2]
[323711837,1714181433697,-251.69476738,0.000125,2]
[323711838,1714181433706,-2100.0,0.000125,4]
[323711839,1714181433715,-14854.8,0.00012563,2]
[323711840,1714181433731,-256.2003,0.00012597,2]
[323711841,1714181433739,-210.036,0.00012598,2]
[323711842,1714181433749,-3964.2352,0.00012598,2]
[323711843,1714181433758,-1628.0,0.000126,2]
[323711844,1714181433767,-400.0,0.000126,4]
[323711845,1714181433776,-1020.70774785,0.00012642,2]
[323711846,1714181433785,-1077.80546252,0.00012642,2]
[323711847,1714181433795,-182.0,0.0001268,2]
[323711848,1714181433804,-500.0,0.00012697,2]
[323711849,1714181433813,-4203.94690322,0.00012697,2]
[323711850,1714181433826,-1609.20349315,0.00012697,2]
[323711851,1714181433844,-297.63987908,0.00012697,2]
[323711852,1714181433859,-4400.0,0.00012697,2]
[323711853,1714181433870,-313.9136,0.00012697,2]
[323711854,1714181433881,-443.03977188,0.00012697,2]
[323711855,1714181433892,-424.91945634,0.00012697,2]
[323711856,1714181433906,-716.59388063,0.00012697,2]
[323711857,1714181433918,-2657.0803135,0.00012697,2]
[323711858,1714181433953,-207.83486764,0.00010506,2]
[323711859,1714181433961,-1496.77765467,0.00012697,2]
[323711860,1714181433975,-2677.91814753,0.00012697,2]
[323711861,1714181433984,-9895.60639074,0.00012697,2]
[323711862,1714181433995,-935.46088552,0.00012697,2]
[323711908,1714181438094,-621.84015726,0.00010506,2]
[323711910,1714181438103,-7260.94212374,0.00012697,2]
[323711912,1714181438112,-7500.0,0.00012697,2]
[323711914,1714181438122,-10000.0,0.00012698,2]
[323711916,1714181438131,-1000.0,0.00012698,2]
[323711918,1714181438141,-159.10767687,0.00012699,2]
[323711920,1714181438151,-400.0,0.000127,4]
[323711922,1714181438160,-188.55,0.00012722,2]
[323711923,1714181438169,-3677.81267008,0.00012769,2]
[323711925,1714181438179,-354.20748585,0.00012795,2]
[323711927,1714181438188,-205.03855401,0.00012796,2]
[323711929,1714181438197,-500.0,0.00012796,2]
[323711931,1714181438206,-500.0,0.00012796,2]
[323711933,1714181438216,-500.0,0.00012796,2]
[323711935,1714181438227,-500.0,0.00012796,2]
[323711937,1714181438237,-540.17,0.00012796,2]
[323711939,1714181438246,-500.0,0.00012796,2]
[323711941,1714181438255,-500.0,0.00012796,2]
[323711943,1714181438265,-500.0,0.00012796,2]
[323711945,1714181438274,-500.0,0.00012796,2]
[323711946,1714181438283,-889.12,0.00012796,2]
[323711947,1714181438293,-500.0,0.00012796,2]
[323711948,1714181438302,-500.0,0.00012796,2]
[323711949,1714181438312,-500.0,0.00012796,2]
[323711950,1714181438322,-1291.92,0.00012796,2]
[323711951,1714181438332,-593.69,0.00012796,2]
[323711952,1714181438342,-529.68,0.00012796,2]
[323711953,1714181438352,-500.0,0.00012796,2]
[323711954,1714181438361,-500.0,0.00012796,2]
[323711955,1714181438371,-500.0,0.00012796,2]
[323711956,1714181438380,-500.0,0.00012796,2]
[323711957,1714181438389,-500.0,0.00012796,2]
[323711958,1714181438398,-1581.91,0.00012796,2]
[323711959,1714181438408,-500.0,0.00012796,2]
[323711960,1714181438418,-500.0,0.00012796,2]
[323711961,1714181438428,-500.0,0.00012796,2]
[323711962,1714181438438,-500.0,0.00012796,2]
[323711963,1714181438447,-500.0,0.00012796,2]
[323711964,1714181438456,-500.0,0.00012796,2]
[323711965,1714181438465,-1090.28,0.00012796,2]
[323711966,1714181438477,-500.0,0.00012796,2]
[323711967,1714181438487,-4659.52,0.00012796,2]
[323711968,1714181438496,-624.70417605,0.00012796,2]
[323711969,1714181438505,-1198.99,0.00012796,2]
[323711970,1714181438515,-500.0,0.00012796,2]
[323711971,1714181438524,-500.0,0.00012796,2]
[323711972,1714181438534,-500.0,0.00012796,2]
[323711974,1714181438543,-522.67981214,0.00012796,2]
[323711976,1714181438553,-500.0,0.00012796,2]
[323711977,1714181438563,-502.35,0.00012796,2]
[323711978,1714181438572,-500.0,0.00012796,2]
[323711980,1714181438581,-500.0,0.00012796,2]
[323711982,1714181438591,-500.0,0.00012796,2]
[323711984,1714181438600,-508.85442529,0.00012796,2]
[323711985,1714181438610,-501.5910412,0.00012796,2]
[323711986,1714181438619,-500.0,0.00012796,2]
[323711987,1714181438628,-500.0,0.00012796,2]
[323711988,1714181438638,-500.0,0.00012796,2]
[323711989,1714181438647,-500.0,0.00012796,2]
[323711990,1714181438657,-500.0,0.00012796,2]
[323711991,1714181438666,-500.0,0.00012796,2]
[323711992,1714181438676,-505.84660403,0.00012796,2]
[323711993,1714181438687,-500.0,0.00012796,2]
[323711994,1714181438696,-500.0,0.00012797,2]
[323711995,1714181438705,-500.0,0.00012797,2]
[323711996,1714181438714,-500.0,0.00012797,2]
[323711997,1714181438723,-500.0,0.00012797,2]
[323711998,1714181438733,-500.0,0.00012797,2]
[323711999,1714181438742,-500.0,0.00012797,2]
[323712000,1714181438751,-500.0,0.00012797,2]
[323712001,1714181438760,-500.0,0.00012797,2]
[323712002,1714181438769,-500.0,0.00012797,2]
[323712003,1714181438778,-500.0,0.00012797,2]
[323712004,1714181438787,-500.0,0.00012797,2]
[323712005,1714181438796,-555.1,0.00012797,2]
[323712006,1714181438805,-208.05565723,0.00012797,2]
[323712007,1714181438814,-500.0,0.00012797,2]
[323712008,1714181438823,-500.0,0.00012797,2]
[323712009,1714181438832,-500.0,0.00012797,2]
[323712010,1714181438841,-500.0,0.00012797,2]
[323712011,1714181438850,-500.0,0.00012797,2]
[323712012,1714181438860,-500.0,0.00012797,2]
[323712013,1714181438869,-500.0,0.00012797,2]
[323712014,1714181438878,-500.0,0.00012797,2]
[323712015,1714181438887,-500.0,0.00012797,2]
[323712016,1714181438897,-500.0,0.00012797,2]
[323712017,1714181438906,-500.0,0.00012797,2]
[323712018,1714181438915,-266.99487093,0.00012797,2]
[323712019,1714181438924,-500.0,0.00012797,2]
[323712020,1714181438933,-500.0,0.00012797,2]
[323712021,1714181438942,-441.79208861,0.00012797,2]
[323712022,1714181438952,-500.0,0.00012797,2]
[323712023,1714181438961,-500.0,0.00012797,2]
[323712024,1714181438969,-500.0,0.00012797,2]
[323712025,1714181438981,-749.39,0.00012797,2]
[323712026,1714181438990,-500.0,0.00012797,2]
[323712027,1714181438999,-500.0,0.00012797,2]
[323712028,1714181439009,-500.0,0.00012797,2]
[323712029,1714181439019,-500.0,0.00012797,2]
[323712030,1714181439029,-500.0,0.00012797,2]
[323712031,1714181439039,-500.0,0.00012797,2]
[323712032,1714181439049,-500.0,0.00012797,2]
[323712033,1714181439060,-500.0,0.00012797,2]
[323712034,1714181439070,-500.0,0.00012797,2]
[323712035,1714181439079,-500.0,0.00012797,2]
[323712036,1714181439089,-500.0,0.00012797,2]
[323712037,1714181439098,-500.0,0.00012797,2]
[323712038,1714181439107,-500.0,0.00012797,2]
[323712039,1714181439117,-500.0,0.00012797,2]
[323712040,1714181439126,-500.0,0.00012797,2]
[323712041,1714181439137,-500.0,0.00012797,2]
[323712042,1714181439147,-500.0,0.00012797,2]
[323712043,1714181439156,-500.0,0.00012797,2]
[323712044,1714181439165,-500.0,0.00012797,2]
[323712045,1714181439174,-500.0,0.00012797,2]
[323712046,1714181439183,-500.0,0.00012797,2]
[323712047,1714181439192,-500.0,0.00012797,2]
[323712048,1714181439201,-500.0,0.00012797,2]
[323712049,1714181439210,-500.0,0.00012797,2]
[323712050,1714181439220,-500.0,0.00012797,2]
[323712051,1714181439234,-500.0,0.00012797,2]
[323712052,1714181439243,-500.0,0.00012797,2]
[323712053,1714181439252,-500.0,0.00012797,2]
[323712054,1714181439262,-500.0,0.00012797,2]
[323712055,1714181439272,-500.0,0.00012797,2]
[323712056,1714181439281,-500.0,0.00012797,2]
[323712057,1714181439290,-500.0,0.00012797,2]
[323712058,1714181439300,-500.0,0.00012797,2]
[323712059,1714181439309,-500.0,0.00012797,2]
[323712060,1714181439319,-500.0,0.00012797,2]
[323712061,1714181439328,-500.0,0.00012797,2]
[323712062,1714181439337,-500.0,0.00012797,2]
[323712063,1714181439347,-500.0,0.00012797,2]
[323712064,1714181439357,-500.0,0.00012797,2]
[323712065,1714181439366,-500.0,0.00012797,2]
[323712066,1714181439376,-500.0,0.00012797,2]
[323712067,1714181439385,-616.05,0.00012797,2]
[323712068,1714181439394,-500.0,0.00012797,2]
[323712069,1714181439403,-500.0,0.00012797,2]
[323712070,1714181439414,-500.0,0.00012797,2]
[323712071,1714181439423,-945.38,0.00012797,2]
[323712072,1714181439434,-500.0,0.00012797,2]
[323712073,1714181439443,-500.0,0.00012797,2]
[323712074,1714181439451,-500.0,0.00012797,2]
[323712075,1714181439461,-500.0,0.00012797,2]
[323712076,1714181439470,-150.0,0.00012797,2]
[323712077,1714181439483,-500.0,0.00012797,2]
[323712078,1714181439494,-500.0,0.00012797,2]
[323712079,1714181439502,-500.0,0.00012797,2]
[323712080,1714181439512,-500.0,0.00012797,2]
[323712081,1714181439521,-166.45380696,0.00012797,2]
[323712082,1714181439530,-500.0,0.00012797,2]
[323712083,1714181439539,-500.0,0.00012797,2]
[323712084,1714181439549,-500.0,0.00012797,2]
[323712085,1714181439558,-500.0,0.00012797,2]
[323712086,1714181439568,-500.0,0.00012797,2]
[323712087,1714181439578,-500.0,0.00012797,2]
[323712088,1714181439587,-500.0,0.00012797,2]
[323712089,1714181439596,-500.0,0.00012797,2]
[323712090,1714181439606,-500.0,0.00012797,2]
[323712091,1714181439615,-500.0,0.00012797,2]
[323712092,1714181439625,-500.0,0.00012797,2]
[323712093,1714181439635,-500.0,0.00012797,2]
[323712094,1714181439644,-500.0,0.00012797,2]
[323712095,1714181439653,-500.0,0.00012797,2]
[323712096,1714181439663,-500.0,0.00012797,2]
[323712097,1714181439672,-500.0,0.00012797,2]
[323712098,1714181439682,-500.0,0.00012797,2]
[323712099,1714181439692,-500.0,0.00012797,2]
[323712100,1714181439701,-500.0,0.00012797,2]
[323712101,1714181439711,-500.0,0.00012797,2]
[323712102,1714181439720,-500.0,0.00012797,2]
[323712103,1714181439734,-500.0,0.00012797,2]
[323712104,1714181439743,-500.0,0.00012797,2]
[323712105,1714181439752,-500.0,0.00012797,2]
[323712106,1714181439762,-500.0,0.00012797,2]
[323712107,1714181439772,-500.0,0.00012797,2]
[323712108,1714181439781,-500.0,0.00012797,2]
[323712109,1714181439790,-500.0,0.00012797,2]
[323712110,1714181439800,-500.0,0.00012797,2]
[323712111,1714181439810,-500.0,0.00012797,2]
[323712112,1714181439819,-500.0,0.00012797,2]
[323712113,1714181439828,-2351.88,0.00012797,2]
[323712114,1714181439837,-500.0,0.00012797,2]
[323712115,1714181439848,-500.0,0.00012797,2]
[323712116,1714181439857,-219.3733968,0.00012797,2]
[323712117,1714181439866,-500.0,0.00012797,2]
[323712118,1714181439876,-500.0,0.00012797,2]
[323712119,1714181439885,-500.0,0.00012797,2]
[323712120,1714181439894,-619.16,0.00012797,2]
[323712121,1714181439903,-500.0,0.00012797,2]
[323712122,1714181439913,-500.0,0.00012797,2]
[323712123,1714181439922,-500.0,0.00012797,2]
[323712124,1714181439932,-500.0,0.00012797,2]
[323712125,1714181439942,-500.0,0.00012797,2]
[323712126,1714181439951,-500.0,0.00012797,2]
[323712127,1714181439960,-500.0,0.00012797,2]
[323712128,1714181439970,-500.0,0.00012797,2]
[323712130,1714181439984,-500.0,0.00012797,2]
[323712133,1714181439993,-500.0,0.00012797,2]
[323712137,1714181440003,-853.72,0.00012797,2]
[323712139,1714181440013,-500.0,0.00012797,2]
[323712141,1714181440022,-1179.9,0.00012797,2]
[323712143,1714181440031,-500.0,0.00012797,2]
[323712144,1714181440043,-500.0,0.00012797,2]
[323712145,1714181440055,-500.0,0.00012797,2]
[323712146,1714181440066,-500.0,0.00012797,2]
[323712147,1714181440076,-500.0,0.00012797,2]
[323712148,1714181440087,-500.0,0.00012797,2]
[323712149,1714181440098,-238.66,0.00012797,2]
[323712150,1714181440108,-500.0,0.00012797,2]
[323712151,1714181440119,-548.39,0.00012797,2]
[323712152,1714181440130,-500.0,0.00012797,2]
[323712153,1714181440141,-500.0,0.00012797,2]
[323712154,1714181440151,-500.0,0.00012797,2]
[323712155,1714181440162,-500.0,0.00012797,2]
[323712156,1714181440173,-500.0,0.00012797,2]
[323712157,1714181440182,-500.0,0.00012797,2]
[323712158,1714181440191,-500.0,0.00012797,2]
[323712159,1714181440200,-500.0,0.00012797,2]
[323712160,1714181440211,-500.0,0.00012797,2]
[323712161,1714181440221,-500.0,0.00012797,2]
[323712162,1714181440233,-500.0,0.00012797,2]
[323712163,1714181440243,-1827.87,0.00012797,2]
[323712164,1714181440252,-4555.42,0.00012797,2]
[323712165,1714181440261,-987.25,0.00012797,2]
[323712166,1714181440271,-500.0,0.00012797,2]
[323712167,1714181440280,-500.0,0.00012797,2]
[323712168,1714181440290,-501.07906505,0.00012797,2]
[323712169,1714181440299,-500.0,0.00012797,2]
[323712170,1714181440308,-500.0,0.00012797,2]
[323712171,1714181440317,-500.0,0.00012797,2]
[323712172,1714181440326,-500.0,0.00012797,2]
[323712173,1714181440336,-500.0,0.00012797,2]
[323712174,1714181440345,-500.0,0.00012797,2]
[323712175,1714181440354,-500.0,0.00012797,2]
[323712176,1714181440363,-500.0,0.00012797,2]
[323712177,1714181440372,-500.0,0.00012797,2]
[323712178,1714181440381,-500.0,0.00012797,2]
[323712179,1714181440389,-520.31,0.00012797,2]
[323712180,1714181440398,-1862.58,0.00012797,2]
[323712181,1714181440408,-500.0,0.00012797,2]
[323712182,1714181440417,-500.0,0.00012797,2]
[323712183,1714181440425,-500.0,0.00012797,2]
[323712184,1714181440434,-500.0,0.00012797,2]
[323712185,1714181440444,-500.0,0.00012797,2]
[323712186,1714181440453,-500.0,0.00012797,2]
[323712187,1714181440462,-500.0,0.00012797,2]
[323712188,1714181440475,-500.0,0.00012797,2]
[323712189,1714181440484,-500.0,0.00012797,2]
[323712190,1714181440493,-500.0,0.00012797,2]
[323712191,1714181440502,-500.0,0.00012797,2]
[323712192,1714181440511,-500.0,0.00012797,2]
[323712193,1714181440520,-500.0,0.00012797,2]
[323712194,1714181440529,-500.0,0.00012797,2]
[323712195,1714181440538,-500.0,0.00012797,2]
[323712196,1714181440548,-500.0,0.00012797,2]
[323712197,1714181440557,-500.0,0.00012797,2]
[323712198,1714181440567,-500.0,0.00012797,2]
[323712199,1714181440576,-444.05,0.00012797,2]
[323712200,1714181440585,-500.0,0.00012797,2]
[323712201,1714181440594,-500.0,0.00012797,2]
[323712202,1714181440604,-500.0,0.00012797,2]
[323712203,1714181440613,-320.4,0.00012797,2]
[323712204,1714181440622,-500.0,0.00012797,2]
[323712205,1714181440632,-500.0,0.00012797,2]
[323712206,1714181440641,-500.0,0.00012797,2]
[323712207,1714181440651,-500.0,0.00012797,2]
[323712208,1714181440661,-500.0,0.00012797,2]
[323712209,1714181440669,-500.0,0.00012797,2]
[323712210,1714181440678,-500.0,0.00012797,2]
[323712211,1714181440687,-500.0,0.00012797,2]
[323712213,1714181440697,-500.0,0.00012797,2]
[323712214,1714181440706,-500.0,0.00012797,2]
[323712215,1714181440715,-500.0,0.00012797,2]
[323712216,1714181440725,-500.0,0.00012797,2]
[323712218,1714181440734,-477.3,0.00012797,2]
[323712219,1714181440744,-641.12,0.00012797,2]
[323712220,1714181440928,-500.0,0.00012797,2]
[323712221,1714181440938,-536.62,0.00012797,2]
[323712222,1714181440947,-500.0,0.00012797,2]